fUSD/lending_fUSD_20250606
["ID","MTS","AMOUNT","RATE_DAILY","PERIOD"]
[364652776,1749181852219,-480.0,0.00030164,7]
[364652777,1749181852229,-1387.96,0.00030164,7]
[364652778,1749181852239,-617.59,0.00030164,7]
[364652779,1749181852248,-480.0,0.00030164,7]
[364652780,1749181852257,-480.0,0.00030164,7]
[364652781,1749181852266,-480.0,0.00030164,7]
[364652782,1749181852276,-400.0,0.00030164,7]
[364652783,1749181852286,-480.0,0.00030164,7]
[364652784,1749181852295,-487.77524339,0.00030164,7]
[364652785,1749181852305,-480.0,0.00030164,7]
[364652786,1749181852314,-483.25585743,0.00030164,7]
[364652787,1749181852323,-480.0,0.00030164,7]
[364652788,1749181852333,-487.73057646,0.00030164,7]
[364652789,1749181852343,-905.45,0.00030164,7]
[364652790,1749181852352,-480.0,0.00030164,7]
[364652791,1749181852361,-1164.98,0.00030164,7]
[364652792,1749181852370,-480.0,0.00030164,7]
[364652793,1749181852379,-1002.22289094,0.00030164,42]
[364652794,1749181852389,-480.0,0.00030164,7]
[364652795,1749181852398,-480.53432489,0.00030164,7]
[364652796,1749181852409,-480.0,0.00030164,7]
[364652797,1749181852419,-480.0,0.00030164,7]
[364652798,1749181852429,-485.69882971,0.00030164,7]
[364652799,1749181852438,-480.0,0.00030164,7]
[364652800,1749181852448,-825.0,0.00030164,7]
[364652801,1749181852459,-480.0,0.00030164,7]
[364652802,1749181852468,-586.04108541,0.00030164,7]
[364652803,1749181852478,-422.98572044,0.00030164,7]
[364652804,1749181852490,-472.80846861,0.00030164,7]
[364652805,1749181852500,-151.0,0.00030164,7]
[364652806,1749181852510,-151.0,0.00030164,7]
[364652807,1749181852520,-224.141534,0.00030164,7]
[364652808,1749181852530,-497.08054199,0.00030164,7]
[364652809,1749181852540,-480.0,0.00030164,7]
[364652810,1749181852549,-480.0,0.00030164,7]
[364652811,1749181852559,-224.141534,0.00030164,7]
[364652812,1749181852569,-620.99055429,0.00030164,7]
[364652813,1749181852578,-480.0,0.00030164,7]
[364652814,1749181852588,-480.0,0.00030164,7]
[364652815,1749181852597,-480.0,0.00030164,7]
[364652816,1749181852607,-224.141534,0.00030164,7]
[364652817,1749181852616,-151.0,0.00030164,7]
[364652818,1749181852627,-500.0,0.00030164,7]
[364652819,1749181852636,-224.141534,0.00030164,7]
[364652820,1749181852646,-151.0,0.00030164,7]
[364652821,1749181852655,-500.0,0.00030164,7]
[364652822,1749181852665,-491.22145578,0.00030164,7]
[364652823,1749181852675,-169.76672196,0.00030164,7]
[364652824,1749181852684,-480.0,0.00030164,7]
[364652825,1749181852694,-480.0,0.00030164,7]
[364652826,1749181852703,-922.02,0.00030164,7]
[364652827,1749181852712,-480.0,0.00030164,7]
[364652828,1749181852722,-480.0,0.00030164,7]
[364652829,1749181852732,-1217.06,0.00030164,7]
[364652830,1749181852741,-482.89028669,0.00030164,7]
[364652831,1749181852750,-483.624507,0.00030164,7]
[364652832,1749181852760,-1985.54,0.00030164,7]
[364652833,1749181852770,-480.0,0.00030164,7]
[364652834,1749181852779,-484.73129032,0.00030164,7]
[364652835,1749181852788,-480.0,0.00030164,7]
[364652836,1749181852798,-480.0,0.00030164,7]
[364652837,1749181852807,-480.0,0.00030164,7]
[364652838,1749181852817,-480.0,0.00030164,7]
[364652839,1749181852826,-1202.89,0.00030164,7]
[364652840,1749181852836,-644.06,0.00030164,7]
[364652841,1749181852846,-602.79866779,0.00030164,7]
[364652842,1749181852855,-488.15516982,0.00030164,7]
[364652843,1749181852865,-480.0,0.00030164,7]
[364652844,1749181852875,-480.0,0.00030164,7]
[364652845,1749181852884,-284.78510516,0.00030164,7]
[364652846,1749181852894,-480.0,0.00030164,7]
[364652847,1749181852905,-480.0,0.00030164,7]
[364652848,1749181852914,-506.97641665,0.00030164,7]
[364652849,1749181852923,-837.15,0.00030164,7]
[364652850,1749181852933,-368.30618468,0.00030164,7]
[364652851,1749181852942,-491.05088204,0.00030164,7]
[364652852,1749181852952,-484.16367605,0.00030164,7]
[364652853,1749181852962,-484.36215884,0.00030164,7]
[364652854,1749181852971,-483.61869178,0.00030164,7]
[364652855,1749181852980,-480.0,0.00030164,7]
[364652856,1749181852989,-484.38374052,0.00030164,7]
[364652857,1749181852999,-516.74305868,0.00030164,7]
[364652858,1749181853008,-480.0,0.00030164,7]
[364652859,1749181853017,-480.0,0.00030164,7]
[364652860,1749181853026,-421.56590944,0.00030164,7]
[364652861,1749181853036,-480.0,0.00030164,7]
[364652862,1749181853045,-581.45497211,0.00030164,7]
[364652863,1749181853054,-480.0,0.00030164,7]
[364652864,1749181853064,-480.0,0.00030164,7]
[364652865,1749181853073,-480.0,0.00030164,7]
[364652866,1749181853082,-480.0,0.00030164,7]
[364652867,1749181853091,-556.39,0.00030164,7]
[364652868,1749181853100,-822.01,0.00030164,7]
[364652869,1749181853109,-480.0,0.00030164,7]
[364652870,1749181853118,-485.06729831,0.00030164,7]
[364652871,1749181853127,-480.0,0.00030164,7]
[364652872,1749181853137,-480.0,0.00030164,7]
[364652873,1749181853146,-480.0,0.00030164,7]
[364652874,1749181853156,-480.0,0.00030164,7]
[364652875,1749181853165,-480.0,0.00030164,7]
[364652876,1749181853175,-480.0,0.00030164,7]
[364652877,1749181853184,-402.46639774,0.00030164,7]
[364652878,1749181853193,-1160.37,0.00030164,7]
[364652879,1749181853202,-465.85447473,0.00030164,7]
[364652880,1749181853212,-480.0,0.00030164,7]
[364652881,1749181853221,-250.0,0.00030164,7]
[364652882,1749181853230,-480.0,0.00030164,7]
[364652883,1749181853239,-480.0,0.00030164,7]
[364652884,1749181853248,-862.157462,0.00030164,7]
[364652885,1749181853258,-862.157462,0.00030164,7]
[364652886,1749181853267,-251.61837732,0.00030164,7]
[364652887,1749181853276,-1358.79,0.00030164,7]
[364652888,1749181853286,-480.0,0.00030164,7]
[364652889,1749181853295,-828.620039,0.00030164,7]
[364652890,1749181853306,-828.620039,0.00030164,7]
[364652891,1749181853315,-480.0,0.00030164,7]
[364652892,1749181853325,-480.0,0.00030164,7]
[364652893,1749181853334,-1140.95,0.00030164,7]
[364652894,1749181853345,-862.157462,0.00030164,7]
[364652895,1749181853354,-862.157462,0.00030164,7]
[364652896,1749181853364,-2431.64,0.00030164,7]
[364652897,1749181853373,-480.0,0.00030164,7]
[364652898,1749181853382,-482.75906997,0.00030164,7]
[364652899,1749181853392,-682.86,0.00030164,7]
[364652900,1749181853402,-480.0,0.00030164,7]
[364652901,1749181853414,-480.0,0.00030164,7]
[364652902,1749181853424,-828.620039,0.00030164,7]
[364652903,1749181853433,-828.620039,0.00030164,7]
[364652904,1749181853443,-555.23119979,0.00030164,7]
[364652905,1749181853451,-483.60662542,0.00030164,7]
[364652906,1749181853462,-712.98,0.00030164,7]
[364652907,1749181853472,-480.0,0.00030164,7]
[364652908,1749181853481,-277.50472787,0.00030164,7]
[364652909,1749181853492,-231.18973601,0.00030164,7]
[364652910,1749181853502,-480.0,0.00030164,7]
[364652911,1749181853511,-483.39354451,0.00030164,7]
[364652912,1749181853521,-480.0,0.00030164,7]
[364652913,1749181853530,-480.0,0.00030164,7]
[364652914,1749181853539,-480.0,0.00030164,7]
[364652915,1749181853549,-432.46830183,0.00030164,7]
[364652916,1749181853559,-500.0,0.00030164,7]
[364652917,1749181853569,-500.0,0.00030164,7]
[364652918,1749181853578,-492.952179,0.00030164,7]
[364652919,1749181853587,-480.0,0.00030164,7]
[364652920,1749181853597,-498.90016387,0.00030164,7]
[364652921,1749181853607,-500.0,0.00030164,7]
[364652922,1749181853616,-500.0,0.00030164,7]
[364652923,1749181853626,-500.0,0.00030164,7]
[364652924,1749181853635,-480.0,0.00030164,7]
[364652925,1749181853645,-500.0,0.00030164,7]
[364652926,1749181853655,-500.0,0.00030164,7]
[364652927,1749181853665,-500.0,0.00030164,7]
[364652928,1749181853675,-480.0,0.00030164,7]
[364652929,1749181853685,-500.0,0.00030164,7]
[364652930,1749181853696,-500.0,0.00030164,7]
[364652931,1749181853706,-465.79842775,0.00030164,7]
[364652932,1749181853716,-1045.15,0.00030164,7]
[364652933,1749181853726,-480.0,0.00030164,7]
[364652934,1749181853736,-500.0,0.00030164,7]
[364652935,1749181853746,-500.0,0.00030164,7]
[364652936,1749181853756,-480.0,0.00030164,7]
[364652937,1749181853766,-491.67730773,0.00030164,7]
[364652938,1749181853776,-990.76,0.00030164,7]
[364652939,1749181853786,-480.0,0.00030164,7]
[364652940,1749181853795,-480.0,0.00030164,7]
[364652941,1749181853806,-498.72968721,0.00030164,7]
[364652942,1749181853816,-465.65734134,0.00030164,7]
[364652943,1749181853826,-388.83195538,0.00030164,7]
[364652944,1749181853836,-480.0,0.00030164,7]
[364652945,1749181853846,-6408.89,0.00030164,7]
[364652946,1749181853855,-1193.33,0.00030164,7]
[364652947,1749181853864,-488.22,0.00030164,7]
[364652948,1749181853874,-480.0,0.00030164,7]
[364652949,1749181853883,-480.0,0.00030164,7]
[364652950,1749181853893,-467.38889236,0.00030164,7]
[364652951,1749181853904,-480.0,0.00030164,7]
[364652952,1749181853913,-480.0,0.00030164,7]
[364652953,1749181853923,-482.67072254,0.00030164,7]
[364652954,1749181853933,-480.0,0.00030164,7]
[364652955,1749181853943,-480.0,0.00030164,7]
[364652956,1749181853952,-495.38243071,0.00030164,7]
[364652957,1749181853961,-5959.361674,0.00030164,7]
[364652958,1749181853971,-151.0,0.00030164,7]
[364652959,1749181853981,-1787.82,0.00030164,7]
[364652960,1749181853990,-5959.361674,0.00030164,7]
[364652961,1749181854000,-151.0,0.00030164,7]
[364652962,1749181854009,-5959.361674,0.00030164,7]
[364652963,1749181854019,-865.33,0.00030164,7]
[364652964,1749181854028,-492.10096552,0.00030164,7]
[364652965,1749181854038,-1072.15,0.00030164,7]
[364652966,1749181854047,-480.0,0.00030164,7]
[364652967,1749181854057,-2152.68,0.00030164,7]
[364652968,1749181854066,-480.0,0.00030164,7]
[364652969,1749181854076,-493.19373307,0.00030164,7]
[364652970,1749181854085,-554.17,0.00030164,7]
[364652971,1749181854095,-5959.361674,0.00030164,7]
[364652972,1749181854104,-5959.361674,0.00030164,7]
[364652973,1749181854115,-5959.361674,0.00030164,7]
[364652974,1749181854133,-854.14,0.00030164,7]
[364652975,1749181854142,-151.0,0.00030164,7]
[364652976,1749181854153,-151.0,0.00030164,7]
[364652977,1749181854163,-182.68611891,0.00030164,7]
[364652978,1749181854173,-480.0,0.00030164,7]
[364652979,1749181854183,-500.09842453,0.00030164,7]
[364652980,1749181854193,-480.0,0.00030164,7]
[364652981,1749181854202,-12357.05,0.00030164,7]
[364652982,1749181854211,-364.12026152,0.00030164,7]
[364652983,1749181854221,-900.017605,0.00030164,7]
[364652984,1749181854231,-900.017605,0.00030164,7]
[364652985,1749181854241,-480.0,0.00030164,7]
[364652986,1749181854251,-392.91678659,0.00030164,7]
[364652987,1749181854261,-494.04549238,0.00030164,7]
[364652988,1749181854270,-151.0,0.00030164,7]
[364652989,1749181854280,-151.0,0.00030164,7]
[364652990,1749181854290,-3328.06,0.00030164,7]
[364652991,1749181854299,-151.0,0.00030164,7]
[364652992,1749181854309,-151.0,0.00030164,7]
[364652993,1749181854318,-3443.8,0.00030164,7]
[364652994,1749181854328,-894.95,0.00030164,7]
[364652995,1749181854338,-480.0,0.00030164,7]
[364652996,1749181854348,-900.017605,0.00030164,7]
[364652997,1749181854364,-480.0,0.00030164,7]
[364652998,1749181854374,-900.017605,0.00030164,7]
[364652999,1749181854384,-480.0,0.00030164,7]
[364653000,1749181854393,-483.61035138,0.00030164,7]
[364653001,1749181854404,-72830.52,0.00030164,7]
[364653002,1749181854416,-485.82998483,0.00030164,7]
[364653003,1749181854427,-480.0,0.00030164,7]
[364653004,1749181854436,-480.0,0.00030164,7]
[364653005,1749181854446,-3599.42,0.00030164,7]
[364653006,1749181854456,-493.95399838,0.00030164,7]
[364653007,1749181854466,-493.96602764,0.00030164,7]
[364653008,1749181854475,-151.0,0.00030164,7]
[364653009,1749181854487,-480.0,0.00030164,7]
[364653010,1749181854497,-151.0,0.00030164,7]
[364653011,1749181854506,-482.98620982,0.00030164,7]
[364653012,1749181854515,-480.0,0.00030164,7]
[364653013,1749181854525,-492.31792865,0.00030164,7]
[364653014,1749181854535,-480.0,0.00030164,7]
[364653015,1749181854544,-567.54,0.00030164,7]
[364653016,1749181854554,-439.50307822,0.00030164,7]
[364653017,1749181854564,-490.68551406,0.00030164,7]
[364653018,1749181854574,-480.0,0.00030164,7]
[364653019,1749181854583,-480.0,0.00030164,7]
[364653020,1749181854592,-480.0,0.00030164,7]
[364653021,1749181854602,-480.0,0.00030164,7]
[364653022,1749181854611,-3861.74,0.00030164,7]
[364653023,1749181854621,-480.0,0.00030164,7]
[364653024,1749181854631,-480.0,0.00030164,7]
[364653025,1749181854640,-480.0,0.00030164,7]
[364653026,1749181854650,-480.0,0.00030164,7]
[364653027,1749181854660,-151.0,0.00030164,7]
[364653028,1749181854670,-151.0,0.00030164,7]
[364653029,1749181854679,-438.44740247,0.00030164,7]
[364653030,1749181854689,-151.0,0.00030164,7]
[364653031,1749181854699,-151.0,0.00030164,7]
[364653032,1749181854708,-151.0,0.00030164,7]
[364653033,1749181854717,-480.0,0.00030164,7]
[364653034,1749181854727,-1024.88,0.00030164,7]
[364653035,1749181854736,-755.46,0.00030164,7]
[364653036,1749181854745,-732.86,0.00030164,7]
[364653037,1749181854755,-496.7189745,0.00030164,7]
[364653038,1749181854764,-480.0,0.00030164,7]
[364653039,1749181854773,-480.0,0.00030164,7]
[364653040,1749181854783,-482.96517514,0.00030164,7]
[364653041,1749181854792,-1026.29,0.00030164,7]
[364653042,1749181854801,-1132.95,0.00030164,7]
[364653043,1749181854811,-480.0,0.00030164,7]
[364653044,1749181854820,-423.27622111,0.00030164,7]
[364653045,1749181854830,-427.05153983,0.00030164,7]
[364653046,1749181854840,-2062.28,0.00030164,7]
[364653047,1749181854850,-486.75731355,0.00030164,7]
[364653048,1749181854859,-174.35824643,0.00030164,7]
[364653049,1749181854868,-480.0,0.00030164,7]
[364653050,1749181854878,-151.0,0.00030164,7]
[364653051,1749181854887,-151.0,0.00030164,7]
[364653052,1749181854897,-480.0,0.00030164,7]
[364653053,1749181854907,-480.0,0.00030164,7]
[364653054,1749181854916,-801.95,0.00030164,7]
[364653055,1749181854926,-480.0,0.00030164,7]
[364653056,1749181854935,-485.15260186,0.00030164,7]
[364653057,1749181854944,-1648.71,0.00030164,7]
[364653058,1749181854954,-480.0,0.00030164,7]
[364653059,1749181854963,-376.46533036,0.00030164,7]
[364653060,1749181854973,-688.47,0.00030164,7]
[364653061,1749181854983,-480.0,0.00030164,7]
[364653062,1749181854992,-480.0,0.00030164,7]
[364653063,1749181855001,-480.0,0.00030164,7]
[364653064,1749181855010,-1827.88,0.00030164,7]
[364653065,1749181855020,-466.11797011,0.00030164,7]
[364653066,1749181855030,-786.49,0.00030164,7]
[364653067,1749181855040,-480.0,0.00030164,7]
[364653068,1749181855049,-1254.13,0.00030164,7]
[364653069,1749181855059,-480.0,0.00030164,7]
[364653070,1749181855068,-521.34,0.00030164,7]
[364653071,1749181855077,-2437.94,0.00030164,7]
[364653072,1749181855087,-480.0,0.00030164,7]
[364653073,1749181855097,-839.78,0.00030164,7]
[364653074,1749181855107,-1316.96,0.00030164,7]
[364653075,1749181855117,-480.0,0.00030164,7]
[364653076,1749181855127,-2019.59,0.00030164,7]
[364653077,1749181855137,-480.0,0.00030164,7]
[364653078,1749181855146,-480.0,0.00030164,7]
[364653079,1749181855158,-480.0,0.00030164,7]
[364653080,1749181855168,-484.88436648,0.00030164,7]
[364653081,1749181855178,-482.71448909,0.00030164,7]
[364653082,1749181855188,-151.0,0.00030164,2]
[364653083,1749181855198,-1900.55,0.00030164,7]
[364653084,1749181855209,-151.0,0.00030164,2]
[364653085,1749181855219,-485.37750756,0.00030164,7]
[364653086,1749181855229,-1279.8,0.00030164,7]
[364653087,1749181855239,-151.0,0.00030164,2]
[364653088,1749181855248,-1816.95,0.00030164,7]
[364653089,1749181855258,-4091.81,0.00030164,7]
[364653090,1749181855267,-151.0,0.00030164,2]
[364653091,1749181855277,-480.0,0.00030164,7]
[364653092,1749181855287,-151.0,0.00030164,2]
[364653093,1749181855297,-482.19885845,0.00030164,7]
[364653094,1749181855307,-480.0,0.00030164,7]
[364653095,1749181855317,-151.0,0.00030164,2]
[364653096,1749181855326,-151.0,0.00030164,2]
[364653097,1749181855336,-492.47177423,0.00030164,7]
[364653098,1749181855346,-480.0,0.00030164,7]
[364653099,1749181855356,-151.0,0.00030164,2]
[364653100,1749181855366,-151.0,0.00030164,7]
[364653101,1749181855376,-150.0,0.00030164,7]
[364653102,1749181855386,-151.0,0.00030164,7]
[364653103,1749181855397,-499.12857982,0.00030164,7]
[364653104,1749181855408,-5638.63,0.00030164,7]
[364653105,1749181855421,-151.0,0.00030164,2]
[364653106,1749181855431,-151.0,0.00030164,7]
[364653107,1749181855441,-150.0,0.00030164,7]
[364653108,1749181855451,-151.0,0.00030164,7]
[364653109,1749181855462,-151.0,0.00030164,2]
[364653110,1749181855473,-480.0,0.00030164,7]
[364653111,1749181855483,-151.0,0.00030164,7]
[364653112,1749181855495,-150.0,0.00030164,7]
[364653113,1749181855505,-151.0,0.00030164,7]
[364653114,1749181855515,-480.0,0.00030164,7]
[364653115,1749181855525,-151.0,0.00030164,2]
[364653116,1749181855535,-151.0,0.00030164,7]
[364653117,1749181855544,-485.88938331,0.00030164,7]
[364653118,1749181855554,-552.88,0.00030164,7]
[364653119,1749181855564,-151.0,0.00030164,2]
[364653120,1749181855573,-480.0,0.00030164,7]
[364653121,1749181855583,-192.266225,0.00030164,2]
[364653122,1749181855593,-480.0,0.00030164,7]
[364653123,1749181855602,-485.10186756,0.00030164,7]
[364653124,1749181855611,-176.47876711,0.00030164,7]
[364653125,1749181855621,-1465.54,0.00030164,7]
[364653126,1749181855631,-480.0,0.00030164,7]
[364653127,1749181855641,-151.0,0.00030164,7]
[364653128,1749181855650,-349.1518131,0.00030164,7]
[364653129,1749181855660,-485.57084507,0.00030164,7]
[364653130,1749181855670,-151.0,0.00030164,7]
[364653131,1749181855680,-3748.1,0.00030164,7]
[364653132,1749181855689,-254.992778,0.00030164,7]
[364653133,1749181855699,-496.95405679,0.00030164,7]
[364653134,1749181855709,-494.74908371,0.00030164,7]
[364653135,1749181855719,-480.0,0.00030164,7]
[364653136,1749181855729,-486.94873946,0.00030164,7]
[364653137,1749181855739,-187.24343611,0.00030164,7]
[364653138,1749181855748,-943.16,0.00030164,7]
[364653139,1749181855760,-480.0,0.00030164,7]
[364653140,1749181855770,-480.0,0.00030164,7]
[364653141,1749181855779,-491.92044498,0.00030164,7]
[364653142,1749181855790,-484.27539449,0.00030164,7]
[364653143,1749181855800,-548.14,0.00030164,7]
[364653144,1749181855810,-1948.23,0.00030164,7]
[364653145,1749181855819,-497.879911,0.00030164,7]
[364653146,1749181855829,-496.22897132,0.00030164,7]
[364653147,1749181855839,-1408.37,0.00030164,7]
[364653148,1749181855849,-1863.11,0.00030164,7]
[364653149,1749181855858,-589.19,0.00030164,7]
[364653150,1749181855871,-339.40009498,0.00030164,7]
[364653151,1749181855881,-480.0,0.00030164,7]
[364653152,1749181855891,-491.37578586,0.00030164,7]
[364653153,1749181855900,-491.51013629,0.00030164,7]
[364653154,1749181855910,-1618.72,0.00030164,7]
[364653155,1749181855920,-484.51187732,0.00030164,7]
[364653156,1749181855930,-487.1339557,0.00030164,7]
[364653157,1749181855939,-229.790512,0.00030164,7]
[364653158,1749181855949,-170.34938031,0.00030164,7]
[364653159,1749181855958,-229.790512,0.00030164,7]
[364653160,1749181855968,-1228.47,0.00030164,7]
[364653161,1749181855977,-229.790512,0.00030164,7]
[364653162,1749181855986,-1158.91,0.00030164,7]
[364653163,1749181855996,-480.0,0.00030164,7]
[364653164,1749181856005,-480.0,0.00030164,7]
[364653165,1749181856015,-366.53355938,0.00030164,7]
[364653166,1749181857885,-228.6520647,0.0003016,2]
[364653167,1749181857895,-1214.30644062,0.00030164,7]
[364653168,1749181857905,-486.25455244,0.00030164,7]
[364653169,1749181857915,-489.88882083,0.00030164,7]
[364653170,1749181857924,-515.68671811,0.00030164,7]
[364653171,1749181927849,960.0,0.00035616,120]
[364653172,1749182208993,1324.0,0.000185,30]
[364653174,1749182448912,39960.0,0.00035616,120]
[364653177,1749182627593,1454.0,0.00035616,120]
[364653179,1749182690698,184.48,0.00013699,2]
[364653187,1749182792049,1669.72,0.00035616,120]
[364653188,1749182827245,500.0,0.0003561,120]
[364653192,1749182839811,500.30995635,0.0003561,120]
[364653194,1749182864587,89312.29572286,0.00034,120]
[364653196,1749182995056,3470.53934107,0.000356,120]
[364653197,1749183003321,250.0,0.00019,2]
[364653199,1749183032005,-500.0,0.00024932,2]
[364653200,1749183032015,-112.7750269,0.00025,7]
[364653201,1749183032027,-48.2249731,0.00025,7]
[364653202,1749183032037,-206.0,0.00025741,2]
[364653203,1749183032046,-44.21226562,0.00027142,2]
[364653204,1749183032147,-626.06773438,0.00027142,2]
[364653205,1749183032157,-300.0,0.00028432,2]
[364653206,1749183032166,-1913.35223562,0.00028433,2]
[364653207,1749183032190,-3806.41843961,0.00028433,2]
[364653208,1749183032202,-608.08518501,0.00028433,2]
[364653328,1749183037870,-7962.73413976,0.00028433,2]
[364653329,1749183037880,-4099.83268723,0.00028519,2]
[364653330,1749183037892,-781.43,0.00028542,30]
[364653331,1749183037902,-177.7,0.0002856,2]
[364653332,1749183037912,-300.0,0.00028791,2]
[364653333,1749183037923,-1158.0,0.00028792,2]
[364653334,1749183037932,-250.0,0.00028793,2]
[364653335,1749183037943,-354.26,0.00028849,2]
[364653336,1749183037953,-2023.32,0.00028849,2]
[364653337,1749183037962,-340.82,0.00028849,2]
[364653338,1749183037972,-354.26,0.00028849,2]
[364653339,1749183037982,-354.26,0.00028849,2]
[364653340,1749183037991,-1000.0,0.00028863,2]
[364653341,1749183038000,-207.4,0.00028877,2]
[364653342,1749183038009,-623.53,0.00028878,2]
[364653343,1749183038018,-205.7871868,0.000289,20]
[364653344,1749183038027,-150.0,0.00029114,7]
[364653345,1749183038036,-167.87,0.0002917,2]
[364653346,1749183038045,-354.26,0.00029278,2]
[364653347,1749183038054,-337.47,0.00029278,2]
[364653348,1749183038064,-205.78718657,0.00029291,20]
[364653349,1749183038073,-4081.0,0.00029322,2]
[364653350,1749183038083,-155.0,0.00029322,2]
[364653351,1749183038093,-7017.0,0.00029322,2]
[364653352,1749183038102,-883.0,0.00029322,2]
[364653353,1749183038112,-500.0,0.00029328,7]
[364653354,1749183038122,-533.32,0.00029328,7]
[364653355,1749183038132,-500.0,0.00029328,7]
[364653356,1749183038144,-500.0,0.00029328,7]
[364653357,1749183038154,-500.0,0.00029328,7]
[364653358,1749183038163,-500.0,0.00029328,7]
[364653359,1749183038173,-500.0,0.00029328,7]
[364653360,1749183038183,-500.0,0.00029328,7]
[364653361,1749183038192,-500.0,0.00029328,7]
[364653362,1749183038203,-500.0,0.00029328,7]
[364653363,1749183038213,-500.0,0.00029328,7]
[364653364,1749183038222,-500.0,0.00029328,7]
[364653365,1749183038231,-500.0,0.00029328,7]
[364653366,1749183038241,-500.0,0.00029328,7]
[364653368,1749183038251,-500.0,0.00029328,7]
[364653370,1749183038260,-500.0,0.00029328,7]
[364653371,1749183038269,-500.0,0.00029328,7]
[364653373,1749183038279,-256.11,0.00029328,7]
[364653376,1749183038289,-500.0,0.00029328,7]
[364653377,1749183038299,-500.0,0.00029328,7]
[364653379,1749183038309,-500.0,0.00029328,7]
[364653381,1749183038318,-500.0,0.00029328,7]
[364653383,1749183038327,-500.0,0.00029328,7]
[364653385,1749183038336,-500.0,0.00029328,7]
[364653387,1749183038345,-500.0,0.00029328,7]
[364653389,1749183038354,-340.9,0.00029366,2]
[364653391,1749183038363,-380.573867,0.00029388,6]
[364653393,1749183038372,-200.0,0.000294,10]
[364653395,1749183038381,-670.28,0.00029406,2]
[364653397,1749183038391,-168.51,0.00029441,2]
[364653399,1749183038400,-500.0,0.000295,10]
[364653401,1749183038409,-206.0,0.00029548,8]
[364653403,1749183038418,-800.0,0.000296,10]
[364653405,1749183038427,-353.56,0.00029616,2]
[364653407,1749183038436,-205.78718657,0.00029683,21]
[364653409,1749183038445,-1100.0,0.000297,10]
[364653411,1749183038454,-161.14916717,0.00029753,30]
[364653414,1749183038463,-1300.0,0.000298,10]
[364653416,1749183038472,-190.43783,0.0002986,2]
[364653418,1749183038482,-200.0,0.000299,10]
[364653420,1749183038491,-3950.27710196,0.000299,2]
[364653422,1749183038500,-466.69116309,0.000299,2]
[364653424,1749183038510,-1657.24571511,0.000299,2]
[364653426,1749183038519,-466.69116302,0.0002991,2]
[364653427,1749183038529,-466.69116302,0.0002992,2]
[364653429,1749183038539,-466.69116302,0.0002993,2]
[364653431,1749183038548,-3950.27710196,0.00029936,2]
[364653434,1749183038557,-1657.24571511,0.00029936,2]
[364653436,1749183038567,-466.69116302,0.0002994,2]
[364653437,1749183038576,-466.69116302,0.00029951,2]
[364653439,1749183038585,-505.45,0.00029954,2]
[364653442,1749183038595,-466.69116302,0.00029961,2]
[364653443,1749183038605,-466.69116302,0.00029971,2]
[364653445,1749183038614,-3950.27710196,0.00029973,2]
[364653447,1749183038624,-1657.24571511,0.00029973,2]
[364653449,1749183038633,-466.69116302,0.00029981,2]
[364653451,1749183038644,-264.08460733,0.00029989,2]
[364653453,1749183038653,-49748.703652,0.0002999,2]
[364653455,1749183038662,-225.71,0.0002999,2]